bitfinex-derivatives/quotes_BTCF0:USTF0_20240815
["timestamp","ask_amount","ask_price","bid_price","bid_amount"]
[1723724775525,0.26448408,58750.0,58749.0,0.00025546]
[1723724775715,0.29748408,58750.0,58749.0,0.00025546]
[1723724776626,0.35124689,58750.0,58749.0,0.00025546]
[1723724777124,0.86188689,58750.0,58749.0,0.00025546]
[1723724777327,0.80812408,58750.0,58749.0,0.00025546]
[1723724777515,0.81112408,58750.0,58749.0,0.00025546]
[1723724777722,0.13028008,58750.0,58749.0,0.08535846]
[1723724778026,0.006,58750.0,58749.0,0.08535846]
[1723724779215,0.091102,58750.0,58749.0,0.08535846]
[1723724779420,0.006,58750.0,58749.0,0.09471194]
[1723724779727,0.006,58750.0,58749.0,0.69045494]
[1723724779926,0.006,58750.0,58749.0,0.17981494]
[1723724780126,0.003,58750.0,58749.0,0.17981494]
[1723724780328,0.085096,58754.0,58753.0,0.085097]
[1723724780528,0.085096,58754.0,58753.0,0.445897]
[1723724781415,0.085096,58754.0,58753.0,0.51371721]
[1723724781620,0.093096,58754.0,58753.0,0.51371721]
[1723724782531,0.178192,58754.0,58753.0,0.3608]
[1723724782724,0.578192,58754.0,58753.0,0.3608]
[1723724783031,0.578192,58754.0,58749.0,0.00025546]
[1723724783032,0.255306,58750.0,58749.0,0.00025546]
[1723724783332,0.765946,58750.0,58749.0,0.00025546]
[1723724783829,0.255306,58750.0,58749.0,0.00025546]
[1723724790539,0.170204,58750.0,58749.0,0.00025546]
[1723724790736,0.170204,58750.0,58749.0,0.14335846]
[1723724791439,0.170204,58750.0,58749.0,0.19423551]
[1723724792436,0.170204,58750.0,58749.0,0.14335846]
[1723724792637,0.170204,58750.0,58749.0,0.05825546]
[1723724792941,0.170204,58750.0,58749.0,0.10914621]
[1723724793531,0.170204,58750.0,58749.0,0.05825546]
[1723724794538,0.085102,58750.0,58749.0,0.14335846]
[1723724795637,0.085102,58750.0,58749.0,0.15252651]
[1723724796144,0.085098,58753.0,58752.0,0.085097]
[1723724796334,0.085098,58753.0,58752.0,0.13601466]
[1723724796534,0.085098,58753.0,58752.0,0.085097]
[1723724797431,0.088098,58753.0,58752.0,0.15291721]
[1723724797727,0.091098,58753.0,58752.0,0.15291721]
[1723724798646,0.091098,58753.0,58752.0,0.085097]
[1723724798941,0.176196,58753.0,58752.0,0.085097]
[1723724799328,0.091098,58753.0,58752.0,0.085097]
[1723724807053,0.141098,58753.0,58752.0,0.085097]
[1723724808544,0.1702,58751.0,58750.0,0.3608]
[1723724808743,0.1802,58751.0,58750.0,0.3608]
[1723724808937,0.1702,58751.0,58750.0,0.3608]
[1723724809742,0.1712,58751.0,58750.0,0.3608]
[1723724810236,0.1812,58751.0,58750.0,0.3608]
[1723724810436,0.1822,58751.0,58750.0,0.3608]
[1723724811848,0.2673,58751.0,58750.0,0.3608]
[1723724812043,0.2673,58751.0,58743.0,0.0589]
[1723724812044,0.255309,58749.0,58748.0,0.06800876]
[1723724812251,0.2942,58748.0,58738.0,0.0850578]
[1723724812453,0.255369,58735.0,58734.0,0.36172]
[1723724812640,0.01,58735.0,58731.0,0.06800715]
[1723724812957,0.01,58735.0,58730.0,0.0850578]
[1723724812958,0.085129,58731.0,58730.0,0.06800715]
[1723724813550,0.085131,58730.0,58729.0,0.085132]
[1723724814452,0.085134,58728.0,58727.0,0.3608]
[1723724814751,0.08613,58731.0,58730.0,0.085131]
[1723724815154,0.08513,58731.0,58730.0,0.085131]
[1723724816550,0.08613,58731.0,58730.0,0.099131]
[1723724817661,0.08713,58731.0,58730.0,0.113131]
[1723724821956,0.002,58731.0,58730.0,0.113131]
[1723724825564,0.087129,58731.0,58730.0,0.113131]
[1723724827451,0.002,58731.0,58730.0,0.198262]
[1723724828567,0.002,58731.0,58730.0,0.113131]
[1723724828957,0.087129,58731.0,58730.0,0.113131]
[1723724831665,0.002,58731.0,58730.0,0.113131]
[1723724832161,0.002,58731.0,58730.0,0.198262]
[1723724833556,0.002,58731.0,58730.0,0.283393]
[1723724833755,0.00025546,58736.0,58735.0,0.170246]
[1723724833964,0.00025546,58736.0,58735.0,0.648746]
[1723724834264,0.00025546,58736.0,58735.0,0.563623]
[1723724834867,0.08537746,58736.0,58735.0,0.445923]
[1723724835268,0.08537746,58736.0,58735.0,0.457923]
[1723724835269,0.17149946,58736.0,58735.0,0.457923]
[1723724835669,0.17149946,58736.0,58735.0,0.3728]
[1723724835858,0.18149946,58736.0,58735.0,0.3728]
[1723724836857,0.19197528,58736.0,58735.0,0.3838]
[1723724837065,0.19197528,58736.0,58735.0,0.3818]
[1723724837570,0.18997528,58736.0,58735.0,0.3608]
[1723724837869,0.19097528,58736.0,58735.0,0.3738]
[1723724839369,0.19097528,58736.0,58735.0,0.3688]
[1723724839862,0.19097528,58736.0,58735.0,0.3618]
[1723724840070,0.18997528,58736.0,58735.0,0.3638]
[1723724840774,0.18997528,58736.0,58735.0,0.003]
[1723724841971,0.20307746,58736.0,58735.0,0.003]
[1723724842173,0.28819946,58736.0,58735.0,0.003]
[1723724842466,0.20307746,58736.0,58735.0,0.003]
[1723724842876,0.28819946,58736.0,58735.0,0.003]
[1723724843560,0.20307746,58736.0,58735.0,0.001]
[1723724843760,0.08537746,58736.0,58735.0,0.003]
[1723724844072,0.28819946,58736.0,58735.0,0.003]
[1723724845672,0.30819946,58736.0,58735.0,0.07107979]
[1723724846171,0.30819946,58736.0,58735.0,0.07108125]
[1723724846172,0.28819946,58736.0,58735.0,0.07108125]
[1723724846365,0.28819946,58736.0,58735.0,0.003]
[1723724846875,0.085126,58733.0,58732.0,0.3608]
[1723724847370,0.202826,58733.0,58732.0,0.3608]
[1723724847568,0.085126,58733.0,58732.0,0.563628]
[1723724847770,0.06797627,58735.0,58734.0,0.085125]
[1723724847964,0.00025546,58736.0,58735.0,0.170246]
[1723724848164,0.00025546,58736.0,58735.0,0.34590964]
[1723724848370,0.00025546,58736.0,58735.0,0.26078664]
[1723724849069,0.20307746,58736.0,58735.0,0.14308664]
[1723724849271,0.20307746,58736.0,58735.0,0.22815603]
[1723724849467,0.20307746,58736.0,58735.0,0.085123]
[1723724849975,0.20307746,58736.0,58735.0,0.089123]
[1723724850475,0.20307746,58736.0,58735.0,0.091123]
[1723724850676,0.20407746,58736.0,58735.0,0.098123]
[1723724851381,0.20407746,58736.0,58735.0,0.102123]
[1723724852378,0.00125546,58736.0,58735.0,0.35642306]
[1723724852581,0.00225546,58736.0,58735.0,0.36642306]
[1723724852778,0.13836209,58736.0,58735.0,0.106123]
[1723724853171,0.08737746,58736.0,58735.0,0.104123]
[1723724853369,0.08737746,58736.0,58735.0,0.102123]
[1723724853771,0.13836799,58736.0,58735.0,0.18819339]
[1723724853979,0.1383674,58736.0,58735.0,0.18819339]
[1723724854273,0.08737746,58736.0,58735.0,0.16171003]
[1723724854480,0.08737746,58736.0,58735.0,0.27841003]
[1723724855193,0.08737746,58736.0,58735.0,0.36345199]
[1723724855479,0.08737746,58736.0,58735.0,0.27841003]
[1723724855782,0.08637746,58736.0,58735.0,0.2693162]
[1723724855986,0.08737746,58736.0,58735.0,0.36335782]
[1723724856293,0.08737746,58736.0,58735.0,0.36435467]
[1723724856573,0.08737746,58736.0,58735.0,0.4276389]
[1723724856881,0.08637746,58736.0,58735.0,0.4166389]
[1723724857076,0.08737746,58736.0,58735.0,0.4256389]
[1723724857381,0.00225546,58736.0,58735.0,0.4256389]
[1723724858280,0.00225546,58736.0,58735.0,0.5107619]
[1723724859279,0.11995546,58736.0,58735.0,0.3079389]
[1723724859479,0.11995546,58736.0,58735.0,0.2504457]
[1723724859784,0.20507746,58736.0,58735.0,0.102123]
[1723724860167,0.20507746,58736.0,58735.0,0.25044907]
[1723724860373,0.20507746,58736.0,58735.0,0.33548008]
[1723724862176,0.29019946,58736.0,58735.0,0.39296523]
[1723724862777,0.29019946,58736.0,58735.0,0.102123]
[1723724862980,0.3411894,58736.0,58735.0,0.102123]
[1723724865894,0.56532146,58736.0,58735.0,0.017]
[1723724866390,0.92612146,58736.0,58735.0,0.017]
[1723724867794,0.73612146,58736.0,58735.0,0.017]
[1723724868091,0.25762146,58736.0,58735.0,0.017]
[1723724868490,0.37532146,58736.0,58735.0,0.017]
[1723724870584,0.29019946,58736.0,58735.0,0.017]
[1723724876783,0.32019946,58736.0,58735.0,0.017]
[1723724878288,0.20249946,58736.0,58735.0,0.017]
[1723724878494,0.20249946,58736.0,58735.0,0.227723]
[1723724878495,0.08737746,58736.0,58735.0,0.227723]
[1723724878792,0.08737746,58736.0,58735.0,0.3760528]
[1723724879000,0.13837071,58736.0,58735.0,0.227723]
[1723724880197,0.08737746,58736.0,58735.0,0.227723]
[1723724880387,0.08737746,58736.0,58735.0,0.37604968]
[1723724880588,0.08737746,58736.0,58735.0,0.37604954]
[1723724881199,0.08737746,58736.0,58735.0,0.37604885]
[1723724881996,0.00225546,58736.0,58735.0,0.46117185]
[1723724882184,0.00225546,58736.0,58735.0,0.60405525]
[1723724882392,0.05099325,58741.0,58740.0,0.085116]
[1723724882596,0.085113,58743.0,58741.0,0.085115]
[1723724882597,0.05099325,58743.0,58741.0,0.085115]
[1723724882794,0.05099325,58746.0,58742.0,0.56610512]
[1723724883103,0.05099325,58751.0,58746.0,0.085107]
[1723724883397,0.05099325,58752.0,58751.0,0.0851]
[1723724883606,0.05099325,58753.0,58752.0,0.085099]
[1723724883782,0.05099325,58755.0,58754.0,0.085096]
[1723724883984,0.05097717,58755.0,58754.0,0.202796]
[1723724884192,0.13607117,58756.0,58755.0,0.085094]
[1723724885190,0.085094,58756.0,58755.0,0.085094]
[1723724885395,0.094094,58756.0,58755.0,0.086094]
[1723724885591,0.05997717,58756.0,58755.0,0.617082]
[1723724885896,0.13605817,58765.0,58755.0,0.446894]
[1723724886105,0.085081,58765.0,58764.0,0.4785]
[1723724886800,0.085063,58777.0,58764.0,0.4785]
[1723724886801,0.05097717,58769.0,58764.0,0.4785]
[1723724886997,0.06797455,58774.0,58764.0,0.4785]
[1723724886998,0.13605017,58770.0,58769.0,0.202774]
[1723724887197,0.085073,58770.0,58769.0,0.202774]
[1723724888000,0.085073,58770.0,58769.0,0.085074]
[1723724888803,0.094073,58770.0,58769.0,0.086074]
[1723724889014,0.009,58770.0,58769.0,0.086074]
[1723724889692,0.018,58770.0,58769.0,0.087074]
[1723724891302,0.103073,58770.0,58769.0,0.087074]
[1723724891901,0.018,58770.0,58769.0,0.087074]
[1723724898196,0.018,58770.0,58769.0,0.447874]
[1723724901398,0.103073,58770.0,58769.0,0.002]
[1723724901597,0.103073,58770.0,58769.0,0.087074]
[1723724902514,0.103073,58770.0,58769.0,0.447874]
[1723724905813,0.188146,58770.0,58769.0,0.002]
[1723724909905,0.305846,58770.0,58769.0,0.002]
[1723724912804,0.103073,58770.0,58769.0,0.087074]
[1723724913006,0.103073,58770.0,58769.0,0.204774]
[1723724913209,0.103073,58770.0,58769.0,0.087074]
[1723724913415,0.103073,58770.0,58769.0,0.16426124]
[1723724913613,0.103073,58770.0,58769.0,0.09640326]
[1723724914608,0.188146,58770.0,58769.0,0.002]
[1723724914917,0.325846,58770.0,58769.0,0.002]
[1723724916609,0.170166,58763.0,58762.0,0.44581706]
[1723724916804,0.3388853,58763.0,58762.0,0.3608]
[1723724917015,0.287866,58763.0,58762.0,0.3608]
[1723724917813,0.085089,58759.0,58757.0,0.06798696]
[1723724918021,0.170182,58757.0,58756.0,0.06798696]
[1723724918215,0.170198,58752.0,58751.0,0.06798696]
[1723724918406,0.287898,58752.0,58751.0,0.06798696]
[1723724918612,0.1702,58751.0,58750.0,0.3608]
[1723724919017,0.22118116,58751.0,58750.0,0.3608]
[1723724919220,0.1702,58751.0,58750.0,0.3608]
[1723724921527,0.1702,58751.0,58750.0,0.3648]
[1723724922708,0.2553,58751.0,58750.0,0.3678]
[1723724924114,0.2553,58751.0,58750.0,0.007]
[1723724927717,0.1702,58751.0,58750.0,0.092102]
[1723724928020,0.0851,58751.0,58750.0,0.092102]
[1723724928819,0.085095,58755.0,58750.0,0.10139254]
[1723724929127,0.085095,58755.0,58754.0,0.3608]
[1723724929426,0.085095,58755.0,58754.0,0.445896]
[1723724932420,0.085095,58755.0,58754.0,0.49675035]
[1723724932823,0.085095,58755.0,58754.0,0.445896]
[1723724933225,0.085095,58755.0,58754.0,0.506396]
[1723724933629,0.00025524,58756.0,58755.0,0.085094]
[1723724933929,0.08534824,58756.0,58755.0,0.143694]
[1723724935630,0.08534824,58756.0,58755.0,0.146694]
[1723724935820,0.08534824,58756.0,58755.0,0.150694]
[1723724936021,0.08534824,58756.0,58755.0,0.20154835]
[1723724936217,0.25553424,58756.0,58755.0,0.05785435]
[1723724936418,0.25553424,58756.0,58747.0,0.44581706]
[1723724936419,0.63085524,58756.0,58749.0,0.05085435]
[1723724936615,0.170206,58749.0,58748.0,0.05085435]
[1723724936815,0.17021,58748.0,58747.0,0.41165435]
[1723724937037,0.255321,58746.0,58745.0,0.00025524]
[1723724937229,0.170246,58735.0,58734.0,0.29225498]
[1723724937421,0.170262,58730.0,58729.0,0.05087606]
[1723724937625,0.170268,58728.0,58727.0,0.3608]
[1723724938630,0.085141,58723.0,58722.0,0.00025524]
[1723724939130,0.531082,58723.0,58722.0,0.00025524]
[1723724939321,0.255426,58722.0,58721.0,0.00012973]
[1723724939721,0.681164,58722.0,58721.0,0.00012973]
[1723724940022,1.081164,58722.0,58721.0,0.00012973]
[1723724940225,0.681164,58722.0,58721.0,0.00012973]
[1723724940715,1.081164,58722.0,58721.0,0.00012973]
[1723724941331,1.081164,58722.0,58721.0,0.00312973]
[1723724942330,0.681164,58722.0,58721.0,0.00812973]
[1723724942526,0.170284,58722.0,58721.0,0.00812973]
[1723724942729,0.681164,58722.0,58721.0,0.00812973]
[1723724943434,0.08514,58724.0,58722.0,0.085142]
[1723724944024,0.08514,58724.0,58723.0,0.085141]
[1723724944425,0.445931,58730.0,58721.0,0.00812973]
[1723724944626,0.085141,58723.0,58722.0,0.002]
[1723724945024,0.085141,58723.0,58722.0,0.087142]
[1723724945226,0.085141,58723.0,58722.0,0.090142]
[1723724945739,0.085135,58727.0,58722.0,0.002]
[1723724945926,0.085141,58723.0,58722.0,0.005]
[1723724946424,0.531082,58723.0,58722.0,0.002]
[1723724946635,0.531082,58723.0,58722.0,0.01]
[1723724946836,0.085141,58723.0,58722.0,0.01]
[1723724947433,0.445941,58723.0,58722.0,0.01]
[1723724947629,1.042962,58723.0,58722.0,0.018]
[1723724947829,1.152962,58723.0,58722.0,0.018]
[1723724948237,1.151962,58723.0,58722.0,0.01]
[1723724948438,1.151962,58723.0,58722.0,0.012]
[1723724948734,1.151962,58723.0,58722.0,0.002]
[1723724948929,1.151962,58723.0,58722.0,0.005]
[1723724949531,1.041962,58723.0,58722.0,0.005]
[1723724949737,0.531082,58723.0,58722.0,0.005]
[1723724949934,1.041962,58723.0,58722.0,0.005]
[1723724950629,1.05151887,58723.0,58722.0,0.005]
[1723724951431,0.45549787,58723.0,58722.0,0.005]
[1723724953138,0.54063887,58723.0,58722.0,0.005]
[1723724953341,0.45549787,58723.0,58722.0,0.005]
[1723724954040,0.54063887,58723.0,58722.0,0.005]
[1723724954428,1.76665987,58723.0,58722.0,0.005]
[1723724954629,0.085149,58717.0,58716.0,0.00025524]
[1723724954831,0.846247,58717.0,58716.0,0.00025524]
[1723724955532,1.357167,58717.0,58716.0,0.00025524]
[1723724955734,1.75729673,58717.0,58716.0,0.00025524]
[1723724955927,1.91729673,58717.0,58716.0,0.00025524]
[1723724956142,1.51729673,58717.0,58716.0,0.00025524]
[1723724956439,1.91729673,58717.0,58716.0,0.00025524]
[1723724956644,1.28729673,58717.0,58716.0,0.00025524]
[1723724957039,1.28829673,58717.0,58716.0,0.00925524]
[1723724957643,1.29764292,58717.0,58716.0,0.00925524]
[1723724957944,1.29664292,58717.0,58716.0,0.00025524]
[1723724958534,0.70057392,58717.0,58716.0,0.00025524]
[1723724958734,0.54057392,58717.0,58716.0,0.00025524]
[1723724958931,0.53122773,58717.0,58716.0,0.00025524]
[1723724959134,0.44607873,58717.0,58716.0,0.00025524]
[1723724959646,0.08527873,58717.0,58716.0,0.08540624]
[1723724959944,0.00012973,58717.0,58716.0,0.08540624]
[1723724960143,0.08527873,58717.0,58716.0,0.08540624]
[1723724960349,0.08527873,58717.0,58716.0,0.09440624]
[1723724960350,0.08627873,58717.0,58716.0,0.09440624]
[1723724960538,0.00112973,58717.0,58716.0,0.09440624]
[1723724961041,0.08527873,58717.0,58716.0,0.08540624]
[1723724961241,0.08627873,58717.0,58716.0,0.09440624]
[1723724961830,0.08627873,58717.0,58716.0,0.08540624]
[1723724962039,0.08627873,58717.0,58716.0,0.09440624]
[1723724963343,0.00112973,58717.0,58716.0,0.09440624]
[1723724963645,0.00112973,58717.0,58716.0,0.17955724]
[1723724963845,0.00025524,58733.0,58720.0,0.085145]
[1723724964153,0.085131,58730.0,58729.0,0.085128]
[1723724964838,0.085135,58727.0,58726.0,0.445936]
[1723724967241,0.087135,58727.0,58726.0,0.49681879]
[1723724967440,0.087135,58727.0,58726.0,0.3608]
[1723724970145,0.087135,58727.0,58726.0,0.445936]
[1723724970451,0.087135,58727.0,58726.0,0.085136]
[1723724970753,0.002,58727.0,58726.0,0.085136]
[1723724971344,0.087135,58727.0,58726.0,0.085136]
[1723724971952,0.002,58727.0,58726.0,0.085136]
[1723724972148,0.002,58727.0,58726.0,1.14909896]
[1723724972343,0.00025524,58733.0,58732.0,0.085128]
[1723724972549,0.08538124,58733.0,58732.0,0.13605449]
[1723724973750,0.09438124,58733.0,58732.0,0.13705449]
[1723724974147,0.09438124,58733.0,58732.0,0.086128]
[1723724975055,0.09438124,58733.0,58732.0,0.13705449]
[1723724975270,0.09438124,58733.0,58732.0,0.086128]
[1723724981865,0.00925524,58733.0,58732.0,0.086128]
[1723724982162,0.00925524,58733.0,58732.0,0.13705449]
[1723724982358,0.05080685,58745.0,58732.0,0.96272649]
[1723724982553,0.085109,58745.0,58744.0,0.08511]
[1723724982751,0.17022,58745.0,58744.0,0.08511]
[1723724983557,0.085116,58742.0,58741.0,0.085113]
[1723724983759,0.085109,58745.0,58739.0,0.00025546]
[1723724983760,0.170232,58740.0,58739.0,0.00025546]
[1723724984163,0.170232,58740.0,58732.0,0.001]
[1723724984164,0.255378,58733.0,58732.0,0.001]
[1723724984346,0.866178,58733.0,58732.0,0.001]
[1723724984548,1.6816,58733.0,58722.0,0.11882847]
[1723724984754,0.255423,58723.0,58721.0,0.05092649]
[1723724984961,0.170284,58722.0,58721.0,0.05092649]
[1723724985262,0.085151,58716.0,58713.0,0.085154]
[1723724985458,0.085146,58720.0,58719.0,0.085147]
[1723724986458,0.08514,58724.0,58723.0,0.085139]
[1723724986658,0.00025546,58727.0,58726.0,0.085136]
[1723724987274,0.085138,58725.0,58723.0,0.0641]
[1723724987772,0.085139,58724.0,58723.0,0.0641]
[1723724989067,0.085139,58724.0,58722.0,0.00092]
[1723724989260,0.085139,58724.0,58717.0,0.06790198]
[1723724989261,0.170298,58717.0,58716.0,0.00025546]
[1723724989463,0.170298,58717.0,58703.0,0.42870198]
[1723724989464,0.085168,58704.0,58703.0,0.42870198]
[1723724989768,0.085164,58708.0,58706.0,0.085165]
[1723724990067,0.085164,58707.0,58706.0,0.085165]
[1723724990254,0.085155,58713.0,58704.0,0.06791297]
[1723724990255,0.085154,58714.0,58704.0,0.06791297]
[1723724990456,0.085154,58714.0,58697.0,0.0638]
[1723724990457,0.085176,58699.0,58698.0,0.08501706]
[1723724990662,0.085176,58699.0,58696.0,0.0629]
[1723724990862,0.085176,58699.0,58698.0,0.085177]
[1723724991465,0.085177,58698.0,58696.0,0.0629]
[1723724991664,0.085177,58698.0,58697.0,0.085178]
[1723724991866,0.085177,58698.0,58697.0,0.15309097]
[1723724992454,0.085177,58698.0,58697.0,0.085178]
[1723724992859,0.00025546,58704.0,58697.0,0.085178]
[1723724992860,0.08542446,58704.0,58697.0,0.91108]
[1723724993062,0.08542446,58704.0,58696.0,0.0629]
[1723724993063,0.08542446,58704.0,58703.0,0.3608]
[1723724993360,0.17059346,58704.0,58703.0,0.3608]
[1723724994358,0.08542446,58704.0,58703.0,0.3608]
[1723724994671,0.085149,58718.0,58717.0,0.085148]
[1723724994884,0.085149,58718.0,58717.0,0.445948]
[1723724995762,0.085143,58722.0,58721.0,0.085143]
[1723724996074,0.00025546,58723.0,58722.0,0.085142]
[1723724996375,0.00025546,58723.0,58722.0,0.146442]
[1723724997660,0.00025546,58723.0,58722.0,0.088142]
[1723724998069,0.08539646,58723.0,58722.0,0.003]
[1723724998274,0.00025546,58723.0,58722.0,0.088142]
[1723724999270,0.08539646,58723.0,58722.0,0.088142]
[1723724999472,0.00025546,58723.0,58722.0,0.088142]
[1723725000168,0.0092773,58733.0,58732.0,0.255384]
[1723725000169,7.6e-07,58733.0,58732.0,0.255384]
[1723725000371,0.445893,58756.0,58732.0,0.255384]
[1723725000372,8.4e-07,58760.0,58744.0,0.3608]
[1723725000566,0.08463053,58782.0,58765.0,0.02552]
[1723725000785,0.05077817,58789.0,58787.0,0.085048]
[1723725001075,0.06770456,58801.0,58788.0,0.3608]
[1723725001378,0.084997,58823.0,58800.0,0.3608]
[1723725001679,0.05074355,58825.0,58819.0,0.3608]
[1723725001866,0.05051979,58841.0,58824.0,0.3608]
[1723725002070,0.08459887,58842.0,58837.0,0.3608]
[1723725002377,0.0618,58870.0,58840.0,0.3608]
[1723725002378,0.3608,58859.0,58840.0,0.3608]
[1723725002672,0.3608,58864.0,58856.0,0.3608]
[1723725002881,0.3608,58878.0,58856.0,0.7608]
[1723725003085,0.3608,58890.0,58877.0,0.3608]
[1723725003289,0.3608,58896.0,58881.0,1.26188]
[1723725003579,0.3608,58896.0,58881.0,0.3524]
[1723725003580,0.08459887,58886.0,58881.0,0.3524]
[1723725003778,0.0849,58890.0,58876.0,0.3608]
[1723725004076,0.08459887,58882.0,58876.0,0.3608]
[1723725004275,0.08459887,58888.0,58881.0,0.3608]
[1723725004477,0.12777777,58903.0,58886.0,0.3608]
[1723725004674,0.3608,58898.0,58886.0,0.3608]
[1723725004875,0.08459887,58887.0,58886.0,0.3608]
[1723725005074,0.20985139,58893.0,58886.0,0.3608]
[1723725005271,0.20985139,58893.0,58891.0,0.3608]
[1723725005272,0.12525252,58893.0,58891.0,0.3608]
[1723725005471,0.12525252,58893.0,58886.0,0.3608]
[1723725005472,0.08459887,58888.0,58886.0,0.3608]
[1723725005670,0.16950387,58887.0,58879.0,0.3608]
[1723725005978,0.12525252,58893.0,58887.0,0.084904]
[1723725006185,0.13282828,58923.0,58901.0,0.084883]
[1723725006475,0.13282828,58923.0,58849.0,0.7795]
[1723725006476,0.084872,58909.0,58907.0,0.3608]
[1723725006667,0.084872,58909.0,58900.0,0.3608]
[1723725006668,0.08459887,58909.0,58900.0,0.3608]
[1723725006872,0.11314263,58913.0,58905.0,0.3608]
[1723725007178,0.11314263,58913.0,58911.0,0.445668]
[1723725007379,0.11339738,58913.0,58911.0,0.445668]
[1723725007576,0.02608638,58913.0,58912.0,0.50924]
[1723725007779,0.13282828,58923.0,58914.0,0.084864]
[1723725008071,0.13282828,58923.0,58922.0,0.7216]
[1723725008471,0.13282828,58923.0,58922.0,1.63076]
[1723725008773,0.13282828,58923.0,58922.0,0.7216]
[1723725008978,0.13282828,58923.0,58922.0,1.63076]
[1723725009178,0.13535353,58933.0,58922.0,1.81280208]
[1723725009483,0.13535353,58933.0,58932.0,0.806439]
[1723725009687,0.13535353,58933.0,58932.0,1.715479]
[1723725009869,0.13535353,58933.0,58932.0,1.23064]
[1723725010181,0.13535353,58933.0,58932.0,1.63064]
[1723725010368,0.3608,58959.0,58932.0,1.63064]
[1723725010570,0.084826,58942.0,58940.0,0.3608]
[1723725010780,0.21742715,58926.0,58922.0,0.001]
[1723725010985,0.21742715,58923.0,58922.0,0.001]
[1723725011172,0.21742715,58927.0,58922.0,0.085853]
[1723725011370,0.00025475,58928.0,58926.0,0.3608]
[1723725011876,0.00025475,58928.0,58927.0,1.29762]
[1723725012280,0.002,58933.0,58927.0,1.69762]
[1723725012469,0.3608,58956.0,58932.0,0.3608]
[1723725012671,0.21742715,58942.0,58938.0,0.3608]
[1723725012870,0.13787878,58943.0,58941.0,0.084825]
[1723725013072,0.13787878,58943.0,58942.0,0.50896]
[1723725013381,0.21742715,58942.0,58939.0,0.4277]
[1723725013682,0.66305515,58940.0,58929.0,0.3608]
[1723725013894,0.13787878,58943.0,58929.0,0.3608]
[1723725013895,0.08484,58931.0,58929.0,0.3608]
[1723725014071,0.08484,58931.0,58930.0,0.3608]
[1723725014072,0.21742715,58931.0,58930.0,0.3608]
[1723725014473,0.21742715,58931.0,58927.0,0.001]
[1723725014474,0.084845,58928.0,58927.0,0.001]
[1723725014675,0.445637,58934.0,58924.0,0.3608]
[1723725014676,0.3608,58934.0,58924.0,0.3608]
[1723725014869,0.084853,58922.0,58920.0,0.3608]
[1723725015072,0.3608,58934.0,58921.0,0.50916]
[1723725015272,0.30228115,58922.0,58920.0,0.3608]
[1723725015469,0.17498471,58921.0,58920.0,0.3608]
[1723725015673,0.084872,58909.0,58895.0,0.3608]
[1723725015990,0.25987571,58896.0,58894.0,0.00018997]
[1723725016284,0.3608,58904.0,58894.0,0.00018997]
[1723725016285,0.17498471,58899.0,58894.0,0.00018997]
[1723725016478,0.3608,58904.0,58895.0,0.3608]
[1723725016873,0.084916,58879.0,58877.0,0.3608]
[1723725017185,0.084916,58879.0,58870.0,0.3608]
[1723725017186,0.3608,58881.0,58870.0,0.3608]
[1723725017377,0.17498471,58888.0,58880.0,0.3608]
[1723725017575,0.084919,58876.0,58875.0,0.3608]
[1723725017784,0.084919,58876.0,58859.0,0.3608]
[1723725017785,0.25990371,58876.0,58859.0,0.3608]
[1723725017983,0.084942,58861.0,58859.0,0.18581529]
[1723725018186,0.00016176,58860.0,58859.0,0.18581529]
[1723725018495,0.00016176,58860.0,58859.0,0.3608]
[1723725018784,0.3608,58884.0,58877.0,0.014]
[1723725018989,0.3608,58884.0,58843.0,0.3608]
[1723725018990,0.084924,58873.0,58843.0,0.3608]
[1723725019189,0.3608,58878.0,58790.0,3.855042]
[1723725019190,0.3608,58870.0,58861.0,0.3608]
[1723725019386,0.3608,58878.0,58861.0,0.3608]
[1723725019387,0.05958,58894.0,58884.0,0.084908]
[1723725019577,0.05958,58894.0,58869.0,0.7885]
[1723725019578,0.0587,58894.0,58880.0,0.3608]
[1723725019893,0.0587,58894.0,58862.0,0.33878502]
[1723725019894,0.3608,58885.0,58868.0,0.3608]
[1723725020078,0.4587,58894.0,58859.0,0.3608]
[1723725020079,0.3608,58878.0,58859.0,0.3608]
[1723725020406,0.084932,58868.0,58859.0,0.445743]
[1723725020682,0.3608,58871.0,58859.0,0.3678]
[1723725020683,0.001,58860.0,58859.0,0.3678]
[1723725020886,0.001,58860.0,58859.0,0.007]
[1723725021101,0.3608,58866.0,58847.0,0.445761]
[1723725021102,0.084946,58858.0,58847.0,0.3608]
[1723725021387,0.08495,58855.0,58847.0,0.3608]
[1723725021601,0.3608,58855.0,58847.0,0.3608]
[1723725021983,0.3608,58855.0,58842.0,0.36092661]
[1723725022186,0.08494,58862.0,58854.0,0.3608]
[1723725022386,0.3608,58855.0,58843.0,0.3608]
[1723725022580,0.3608,58859.0,58852.0,0.084954]
[1723725022886,0.3608,58866.0,58856.0,0.084947]
[1723725023089,0.001,58858.0,58856.0,0.084947]
[1723725023398,0.001,58858.0,58856.0,0.445747]
[1723725024190,0.00759757,58903.0,58856.0,0.3698]
[1723725024191,0.3608,58869.0,58856.0,0.3698]
[1723725024403,0.30981731,58869.0,58861.0,0.3608]
[1723725024581,0.084933,58867.0,58861.0,0.3608]
[1723725024778,0.30981731,58869.0,58856.0,0.009]
[1723725024779,0.084946,58858.0,58856.0,0.009]
[1723725024982,0.00025475,58861.0,58856.0,0.3698]
[1723725025188,0.00025475,58861.0,58860.0,0.084943]
[1723725025399,0.3608,58869.0,58868.0,0.084931]
[1723725025584,0.001,58869.0,58862.0,0.3608]
[1723725026087,0.084929,58870.0,58862.0,0.3608]
[1723725026394,0.445721,58876.0,58866.0,0.084934]
[1723725026594,0.445721,58876.0,58867.0,0.084932]
[1723725027283,0.445721,58876.0,58868.0,0.084931]
[1723725027487,0.3608,58882.0,58862.0,0.3628]
[1723725027806,0.084886,58900.0,58862.0,0.3628]